[Event "Early-Titled-Tuesday-Blitz-September-05-2023"]
[Site "Chess.com"]
[Date "2023.09.05"]
[Round "3"]
[White "Mikhail_Golubev"]
[Black "Der_Balak_3Halak"]
[Result "1-0"]
[WhiteElo "2596"]
[BlackElo "2404"]
[TimeControl "180+1"]
[EndTime "8:28:17 PDT"]
[Termination "Mikhail_Golubev won by checkmate"]

1. e4 {[%clk 0:03:00.9]} 1... c5 {[%clk 0:03:00.6]} 2. Nf3 {[%clk 0:03:00.9]}
2... Nc6 {[%clk 0:03:00.5]} 3. Nc3 {[%clk 0:02:59.8]} 3... e5 {[%clk 0:02:59.3]}
4. Bc4 {[%clk 0:02:58.6]} 4... d6 {[%clk 0:02:57.4]} 5. d3 {[%clk 0:02:56]} 5...
Be7 {[%clk 0:02:57.7]} 6. Nd2 {[%clk 0:02:56.2]} 6... a6 {[%clk 0:02:49.7]} 7.
Nf1 {[%clk 0:02:53.6]} 7... Bg5 {[%clk 0:02:40.8]} 8. Qh5 {[%clk 0:02:45.6]}
8... g6 {[%clk 0:02:08.2]} 9. Qxg5 {[%clk 0:02:44]} 9... Qxg5 {[%clk 0:02:02.3]}
10. Bxg5 {[%clk 0:02:44.9]} 10... Nd4 {[%clk 0:02:02.8]} 11. O-O-O {[%clk
0:02:35.8]} 11... b5 {[%clk 0:02:02.5]} 12. Bd5 {[%clk 0:02:25.8]} 12... Rb8
{[%clk 0:02:02.3]} 13. Ng3 {[%clk 0:02:18.5]} 13... Bg4 {[%clk 0:01:48.6]} 14.
f3 {[%clk 0:02:16.2]} 14... Be6 {[%clk 0:01:49.1]} 15. Nge2 {[%clk 0:02:08.8]}
15... h6 {[%clk 0:01:37.8]} 16. Be3 {[%clk 0:01:55.8]} 16... b4 {[%clk
0:01:35.8]} 17. Bxd4 {[%clk 0:01:46.1]} 17... cxd4 {[%clk 0:01:30.4]} 18. Bc6+
{[%clk 0:01:39.5]} 18... Kd8 {[%clk 0:01:15.6]} 19. Nd5 {[%clk 0:01:39.3]} 19...
Rc8 {[%clk 0:01:09.4]} 20. Bb7 {[%clk 0:01:38.5]} 20... Rb8 {[%clk 0:01:08.8]}
21. Bxa6 {[%clk 0:01:37.6]} 21... Ne7 {[%clk 0:01:07.5]} 22. Nxe7 {[%clk
0:01:35.1]} 22... Kxe7 {[%clk 0:01:06.4]} 23. Bc4 {[%clk 0:01:35.1]} 23... Ra8
{[%clk 0:01:00.4]} 24. Kb1 {[%clk 0:01:32]} 24... Ra7 {[%clk 0:00:56]} 25. Nc1
{[%clk 0:01:28.4]} 25... Bd7 {[%clk 0:00:50.1]} 26. g3 {[%clk 0:01:22.4]} 26...
g5 {[%clk 0:00:46.7]} 27. h4 {[%clk 0:01:20.4]} 27... g4 {[%clk 0:00:46.5]} 28.
f4 {[%clk 0:01:19.7]} 28... f6 {[%clk 0:00:45.4]} 29. Rhf1 {[%clk 0:01:16.8]}
29... h5 {[%clk 0:00:37]} 30. Rf2 {[%clk 0:01:15.4]} 30... Rf8 {[%clk 0:00:34]}
31. a3 {[%clk 0:01:04.1]} 31... bxa3 {[%clk 0:00:32.1]} 32. b3 {[%clk
0:01:02.3]} 32... a2+ {[%clk 0:00:17.9]} 33. Nxa2 {[%clk 0:01:00.7]} 33... Rb8
{[%clk 0:00:17]} 34. Kb2 {[%clk 0:00:58.2]} 34... Rba8 {[%clk 0:00:16.7]} 35.
Nc1 {[%clk 0:00:56.3]} 35... Ra1 {[%clk 0:00:15]} 36. fxe5 {[%clk 0:00:53]}
36... dxe5 {[%clk 0:00:14.6]} 37. Rdf1 {[%clk 0:00:52.7]} 37... f5 {[%clk
0:00:14.9]} 38. exf5 {[%clk 0:00:50.2]} 38... Kf6 {[%clk 0:00:14.9]} 39. b4
{[%clk 0:00:44.8]} 39... Bc6 {[%clk 0:00:13.6]} 40. Na2 {[%clk 0:00:40.7]} 40...
Rxf1 {[%clk 0:00:13.3]} 41. Rxf1 {[%clk 0:00:40.4]} 41... Bg2 {[%clk 0:00:13.7]}
42. Rf2 {[%clk 0:00:40.2]} 42... Bf3 {[%clk 0:00:14.3]} 43. Nc1 {[%clk
0:00:38.1]} 43... Rb8 {[%clk 0:00:11.5]} 44. Kb3 {[%clk 0:00:35.3]} 44... Kxf5
{[%clk 0:00:11.5]} 45. Bd5 {[%clk 0:00:35.3]} 45... Rf8 {[%clk 0:00:07.7]} 46.
Bxf3 {[%clk 0:00:33.7]} 46... Ke6 {[%clk 0:00:04.6]} 47. Bxg4+ {[%clk
0:00:30.9]} 47... hxg4 {[%clk 0:00:03.6]} 48. Rxf8 {[%clk 0:00:30.9]} 48... e4
{[%clk 0:00:04]} 49. Rf1 {[%clk 0:00:28.7]} 49... e3 {[%clk 0:00:04]} 50. Ne2
{[%clk 0:00:27.2]} 50... Ke5 {[%clk 0:00:04.6]} 51. Kb2 {[%clk 0:00:27.1]} 51...
Kd5 {[%clk 0:00:04.9]} 52. Kc1 {[%clk 0:00:27.3]} 52... Ke5 {[%clk 0:00:05.4]}
53. Kd1 {[%clk 0:00:27.3]} 53... Kd5 {[%clk 0:00:06.3]} 54. Ke1 {[%clk
0:00:27.4]} 54... Ke5 {[%clk 0:00:07.2]} 55. b5 {[%clk 0:00:27.1]} 55... Kd5
{[%clk 0:00:08.1]} 56. b6 {[%clk 0:00:27.4]} 56... Kc6 {[%clk 0:00:08.9]} 57. b7
{[%clk 0:00:27.7]} 57... Kb6 {[%clk 0:00:09.8]} 58. h5 {[%clk 0:00:27.9]} 58...
Kc7 {[%clk 0:00:09.8]} 59. h6 {[%clk 0:00:28.2]} 59... Kb8 {[%clk 0:00:10.5]}
60. h7 {[%clk 0:00:28.3]} 60... Ka7 {[%clk 0:00:11.4]} 61. Nxd4 {[%clk
0:00:27.3]} 61... Kxb7 {[%clk 0:00:12.3]} 62. Rf6 {[%clk 0:00:25.8]} 62... Kc7
{[%clk 0:00:11.9]} 63. h8=Q {[%clk 0:00:25.5]} 63... e2 {[%clk 0:00:12.8]} 64.
Qg7+ {[%clk 0:00:25.6]} 64... Kd8 {[%clk 0:00:13.5]} 65. Rf8# {[%clk 0:00:25]}
1-0

[Event "Early-Titled-Tuesday-Blitz-September-05-2023"]
[Site "Chess.com"]
[Date "2023.09.05"]
[Round "3"]
[White "Roedor"]
[Black "temiksmozg"]
[Result "1/2-1/2"]
[WhiteElo "2460"]
[BlackElo "2629"]
[TimeControl "180+1"]
[EndTime "8:28:19 PDT"]
[Termination "Game drawn by repetition"]

1. d4 {[%clk 0:02:58.5]} 1... d5 {[%clk 0:02:59.6]} 2. c4 {[%clk 0:02:58.3]}
2... e6 {[%clk 0:02:56.7]} 3. g3 {[%clk 0:02:57.7]} 3... c6 {[%clk 0:02:55.7]}
4. Bg2 {[%clk 0:02:57.7]} 4... dxc4 {[%clk 0:02:56.3]} 5. Nf3 {[%clk 0:02:58]}
5... b5 {[%clk 0:02:56.4]} 6. O-O {[%clk 0:02:57.2]} 6... Bb7 {[%clk 0:02:56.7]}
7. a4 {[%clk 0:02:54.3]} 7... a6 {[%clk 0:02:56.1]} 8. Nc3 {[%clk 0:02:50.4]}
8... Nd7 {[%clk 0:02:55]} 9. Ne5 {[%clk 0:02:48.3]} 9... Nxe5 {[%clk 0:02:27.8]}
10. dxe5 {[%clk 0:02:49.2]} 10... Qb6 {[%clk 0:02:12.4]} 11. Be3 {[%clk
0:02:23.4]} 11... Qc7 {[%clk 0:02:10.7]} 12. axb5 {[%clk 0:02:17.2]} 12... cxb5
{[%clk 0:02:09.5]} 13. Nxb5 {[%clk 0:02:16.3]} 13... axb5 {[%clk 0:02:09.1]} 14.
Rxa8+ {[%clk 0:02:15.6]} 14... Bxa8 {[%clk 0:02:10]} 15. Bxa8 {[%clk 0:02:15.8]}
15... Bc5 {[%clk 0:02:02]} 16. Qd2 {[%clk 0:00:50.5]} 16... Ne7 {[%clk
0:01:58.4]} 17. Ra1 {[%clk 0:00:39]} 17... O-O {[%clk 0:01:52]} 18. Bxc5 {[%clk
0:00:31.2]} 18... Qxc5 {[%clk 0:01:49.2]} 19. Qd6 {[%clk 0:00:31.8]} 19... Qxd6
{[%clk 0:01:31.9]} 20. exd6 {[%clk 0:00:32.7]} 20... Nf5 {[%clk 0:01:32.6]} 21.
d7 {[%clk 0:00:32.5]} 21... Rd8 {[%clk 0:01:32.5]} 22. Bc6 {[%clk 0:00:31.6]}
22... Nd4 {[%clk 0:01:31.5]} 23. Ra8 {[%clk 0:00:29.3]} 23... Nxc6 {[%clk
0:01:30.5]} 24. Rc8 {[%clk 0:00:29.4]} 24... Kf8 {[%clk 0:01:20.4]} 25. Rxc6
{[%clk 0:00:29.5]} 25... Rxd7 {[%clk 0:01:20.9]} 26. Rb6 {[%clk 0:00:29.7]}
26... Rd5 {[%clk 0:01:18.9]} 27. e4 {[%clk 0:00:29.1]} 27... Re5 {[%clk
0:00:59.6]} 28. f3 {[%clk 0:00:29]} 28... f5 {[%clk 0:00:58.1]} 29. exf5 {[%clk
0:00:26.9]} 29... exf5 {[%clk 0:00:59]} 30. Kf2 {[%clk 0:00:27.2]} 30... Kf7
{[%clk 0:00:57.7]} 31. f4 {[%clk 0:00:27.4]} 31... Rd5 {[%clk 0:00:57.6]} 32.
Ke3 {[%clk 0:00:25.8]} 32... Rd3+ {[%clk 0:00:57.3]} 33. Ke2 {[%clk 0:00:25]}
33... Rb3 {[%clk 0:00:58.2]} 34. h3 {[%clk 0:00:17.7]} 34... Rxb2+ {[%clk
0:00:54]} 35. Ke3 {[%clk 0:00:18.1]} 35... Rb3+ {[%clk 0:00:54.1]} 36. Kd4
{[%clk 0:00:18.6]} 36... Rxg3 {[%clk 0:00:54.6]} 37. Rxb5 {[%clk 0:00:18.3]}
37... Rxh3 {[%clk 0:00:46]} 38. Rxf5+ {[%clk 0:00:17.5]} 38... Kg6 {[%clk
0:00:46.1]} 39. Rg5+ {[%clk 0:00:17.6]} 39... Kf6 {[%clk 0:00:46.2]} 40. Rc5
{[%clk 0:00:13.4]} 40... c3 {[%clk 0:00:37.7]} 41. Ke4 {[%clk 0:00:13.8]} 41...
g6 {[%clk 0:00:31.9]} 42. Rc6+ {[%clk 0:00:13.8]} 42... Kg7 {[%clk 0:00:32.2]}
43. f5 {[%clk 0:00:11.4]} 43... g5 {[%clk 0:00:26]} 44. Rc7+ {[%clk 0:00:09.6]}
44... Kf6 {[%clk 0:00:24.7]} 45. Rc6+ {[%clk 0:00:09.5]} 45... Ke7 {[%clk
0:00:24.3]} 46. f6+ {[%clk 0:00:09.2]} 46... Kf7 {[%clk 0:00:23.5]} 47. Kf5
{[%clk 0:00:09.3]} 47... Rf3+ {[%clk 0:00:18.3]} 48. Kxg5 {[%clk 0:00:09.1]}
48... h6+ {[%clk 0:00:19]} 49. Kg4 {[%clk 0:00:08]} 49... Rd3 {[%clk 0:00:14]}
50. Kf5 {[%clk 0:00:08.1]} 50... Rf3+ {[%clk 0:00:12.7]} 51. Kg4 {[%clk
0:00:08.3]} 51... Rd3 {[%clk 0:00:03.5]} 52. Kf5 {[%clk 0:00:08.2]} 52... Rf3+
{[%clk 0:00:02.4]} 53. Kg4 {[%clk 0:00:08.4]} 1/2-1/2

[Event "Early-Titled-Tuesday-Blitz-September-05-2023"]
[Site "Chess.com"]
[Date "2023.09.05"]
[Round "3"]
[White "Andrei_Skvortsov"]
[Black "sergiochess83"]
[Result "0-1"]
[WhiteElo "2643"]
[BlackElo "2942"]
[TimeControl "180+1"]
[EndTime "8:28:20 PDT"]
[Termination "sergiochess83 won by resignation"]

1. e4 {[%clk 0:03:00.9]} 1... e6 {[%clk 0:02:56.4]} 2. d4 {[%clk 0:02:58.5]}
2... d5 {[%clk 0:02:53.4]} 3. exd5 {[%clk 0:02:59.4]} 3... exd5 {[%clk
0:02:51.3]} 4. Nf3 {[%clk 0:02:59.9]} 4... Bd6 {[%clk 0:02:50.6]} 5. c4 {[%clk
0:02:59.8]} 5... Nf6 {[%clk 0:02:35.7]} 6. Nc3 {[%clk 0:02:56.4]} 6... O-O
{[%clk 0:02:33.2]} 7. cxd5 {[%clk 0:02:48.4]} 7... Re8+ {[%clk 0:02:32.5]} 8.
Be2 {[%clk 0:02:48.6]} 8... Nbd7 {[%clk 0:02:25.1]} 9. O-O {[%clk 0:02:46.2]}
9... Nf8 {[%clk 0:02:24.7]} 10. h3 {[%clk 0:02:43.5]} 10... Ng6 {[%clk
0:02:23.7]} 11. Bb5 {[%clk 0:02:43.9]} 11... Bd7 {[%clk 0:02:23.2]} 12. Bc4
{[%clk 0:02:34.9]} 12... h6 {[%clk 0:02:17.8]} 13. a4 {[%clk 0:02:32.2]} 13...
a6 {[%clk 0:02:18]} 14. a5 {[%clk 0:02:31.3]} 14... Bf5 {[%clk 0:02:01.3]} 15.
Re1 {[%clk 0:02:28.6]} 15... Qd7 {[%clk 0:02:00.7]} 16. Be3 {[%clk 0:02:25.6]}
16... Re7 {[%clk 0:01:52.7]} 17. Bf1 {[%clk 0:02:22.1]} 17... Rae8 {[%clk
0:01:49.3]} 18. Qb3 {[%clk 0:02:20.1]} 18... Qc8 {[%clk 0:01:47.8]} 19. Na4
{[%clk 0:02:09.4]} 19... Be4 {[%clk 0:01:44.8]} 20. Nc5 {[%clk 0:02:04.3]} 20...
Bxd5 {[%clk 0:01:32.4]} 21. Qd1 {[%clk 0:02:02.8]} 21... Ne4 {[%clk 0:01:18.1]}
22. b4 {[%clk 0:01:59.5]} 22... c6 {[%clk 0:01:16.2]} 23. Rc1 {[%clk 0:01:57.6]}
23... Bb8 {[%clk 0:01:07.5]} 24. Bc4 {[%clk 0:01:37.4]} 24... Bxc4 {[%clk
0:00:53.2]} 25. Nxe4 {[%clk 0:01:22.9]} 25... Rxe4 {[%clk 0:00:47.2]} 26. Rxc4
{[%clk 0:01:22.5]} 26... Qd7 {[%clk 0:00:47.5]} 27. Nd2 {[%clk 0:01:14]} 27...
R4e7 {[%clk 0:00:43.4]} 28. Qg4 {[%clk 0:01:02.2]} 28... Qxg4 {[%clk 0:00:17.7]}
29. hxg4 {[%clk 0:01:03.1]} 29... Nf4 {[%clk 0:00:18.3]} 30. Nf3 {[%clk
0:00:48.2]} 30... Nd5 {[%clk 0:00:17.9]} 31. Bd2 {[%clk 0:00:41.7]} 31... Rxe1+
{[%clk 0:00:17.6]} 32. Nxe1 {[%clk 0:00:20.6]} 32... Re4 {[%clk 0:00:10.8]} 33.
f3 {[%clk 0:00:15.2]} 33... Re2 {[%clk 0:00:10.5]} 34. Rc2 {[%clk 0:00:14.4]}
34... Bd6 {[%clk 0:00:06.1]} 35. Kf1 {[%clk 0:00:13.1]} 35... Re6 {[%clk
0:00:02.8]} 36. Nd3 {[%clk 0:00:13.2]} 36... Ne3+ {[%clk 0:00:03]} 37. Bxe3
{[%clk 0:00:12.4]} 37... Rxe3 {[%clk 0:00:03.9]} 38. Rd2 {[%clk 0:00:12.5]}
38... Kf8 {[%clk 0:00:04.4]} 39. Kf2 {[%clk 0:00:12.6]} 39... Re8 {[%clk
0:00:04.3]} 40. Nc5 {[%clk 0:00:13.1]} 40... Bxc5 {[%clk 0:00:04.1]} 41. dxc5
{[%clk 0:00:14]} 41... Ke7 {[%clk 0:00:04.4]} 42. Ke3 {[%clk 0:00:12.9]} 42...
Rd8 {[%clk 0:00:04.2]} 43. Rd4 {[%clk 0:00:12.7]} 43... Rxd4 {[%clk 0:00:03.9]}
44. Kxd4 {[%clk 0:00:13.6]} 44... Ke6 {[%clk 0:00:04.7]} 45. Ke4 {[%clk
0:00:13.4]} 45... f6 {[%clk 0:00:04.9]} 46. g3 {[%clk 0:00:13.7]} 46... g6
{[%clk 0:00:04.2]} 47. f4 {[%clk 0:00:14.1]} 47... f5+ {[%clk 0:00:04.5]} 48.
gxf5+ {[%clk 0:00:13.1]} 48... gxf5+ {[%clk 0:00:05.4]} 49. Kd4 {[%clk
0:00:13.3]} 49... Kf6 {[%clk 0:00:05]} 50. Kc4 {[%clk 0:00:13.2]} 50... Ke6
{[%clk 0:00:05.1]} 51. Kd4 {[%clk 0:00:13.7]} 51... Kf6 {[%clk 0:00:05.2]} 52.
Kd3 {[%clk 0:00:13.9]} 52... Kg6 {[%clk 0:00:05.1]} 53. Kd4 {[%clk 0:00:14.1]}
53... Kh5 {[%clk 0:00:05.4]} 54. Ke3 {[%clk 0:00:13.8]} 54... Kg4 {[%clk
0:00:05.7]} 55. Kf2 {[%clk 0:00:13.2]} 55... h5 {[%clk 0:00:05.3]} 56. Kg2
{[%clk 0:00:13.2]} 56... h4 {[%clk 0:00:05.7]} 57. gxh4 {[%clk 0:00:13.8]} 57...
Kxh4 {[%clk 0:00:06.6]} 58. Kf3 {[%clk 0:00:14.2]} 58... Kh3 {[%clk 0:00:07.1]}
59. Ke3 {[%clk 0:00:14.9]} 59... Kg4 {[%clk 0:00:07.6]} 0-1

[Event "Early-Titled-Tuesday-Blitz-September-05-2023"]
[Site "Chess.com"]
[Date "2023.09.05"]
[Round "3"]
[White "ShiroglanTalibov"]
[Black "OparinGrigoriy"]
[Result "0-1"]
[WhiteElo "2777"]
[BlackElo "2990"]
[TimeControl "180+1"]
[EndTime "8:28:21 PDT"]
[Termination "OparinGrigoriy won on time"]

1. e4 {[%clk 0:03:00.9]} 1... c5 {[%clk 0:02:59.9]} 2. Nf3 {[%clk 0:03:00.7]}
2... Nc6 {[%clk 0:03:00.4]} 3. d4 {[%clk 0:02:59.5]} 3... cxd4 {[%clk
0:03:00.3]} 4. Nxd4 {[%clk 0:03:00.4]} 4... e5 {[%clk 0:03:00.8]} 5. Nb5 {[%clk
0:02:59.4]} 5... d6 {[%clk 0:02:59.9]} 6. c4 {[%clk 0:02:59.3]} 6... Nf6 {[%clk
0:02:52.6]} 7. Bd3 {[%clk 0:02:49.6]} 7... g6 {[%clk 0:02:51.9]} 8. Bg5 {[%clk
0:02:48.5]} 8... Bg7 {[%clk 0:02:48.8]} 9. N1c3 {[%clk 0:02:42.7]} 9... a6
{[%clk 0:02:46]} 10. Na3 {[%clk 0:02:41.8]} 10... h6 {[%clk 0:02:45.9]} 11. Bh4
{[%clk 0:02:37.2]} 11... O-O {[%clk 0:02:36.6]} 12. Nc2 {[%clk 0:02:34.1]} 12...
g5 {[%clk 0:02:24]} 13. Bg3 {[%clk 0:02:33.4]} 13... Bg4 {[%clk 0:02:24.7]} 14.
f3 {[%clk 0:02:32.8]} 14... Be6 {[%clk 0:02:25.4]} 15. Bf2 {[%clk 0:02:29.5]}
15... Nh5 {[%clk 0:02:23.8]} 16. Ne3 {[%clk 0:02:28.4]} 16... Nf4 {[%clk
0:02:23.1]} 17. O-O {[%clk 0:02:26.1]} 17... Nd4 {[%clk 0:02:16.2]} 18. Ncd5
{[%clk 0:02:24.8]} 18... Rc8 {[%clk 0:02:10.8]} 19. Rc1 {[%clk 0:02:23.7]} 19...
h5 {[%clk 0:02:03.9]} 20. Nxf4 {[%clk 0:02:04.7]} 20... exf4 {[%clk 0:02:04.1]}
21. Nd5 {[%clk 0:02:00.8]} 21... Nc6 {[%clk 0:01:50.3]} 22. c5 {[%clk
0:01:54.8]} 22... Ne5 {[%clk 0:01:47.7]} 23. Be2 {[%clk 0:01:47.7]} 23... h4
{[%clk 0:01:13.4]} 24. h3 {[%clk 0:01:46.3]} 24... Kh8 {[%clk 0:00:51.5]} 25.
Qd2 {[%clk 0:01:39.5]} 25... Rc6 {[%clk 0:00:46]} 26. Nb4 {[%clk 0:01:31.7]}
26... Rxc5 {[%clk 0:00:42.9]} 27. Bxc5 {[%clk 0:01:16.5]} 27... dxc5 {[%clk
0:00:43.8]} 28. Nd5 {[%clk 0:01:17.1]} 28... Nc6 {[%clk 0:00:41.4]} 29. Kh1
{[%clk 0:01:17.2]} 29... Bd4 {[%clk 0:00:41.2]} 30. Bc4 {[%clk 0:01:14.8]} 30...
b5 {[%clk 0:00:38.4]} 31. Bd3 {[%clk 0:01:13.3]} 31... Kg7 {[%clk 0:00:28.3]}
32. Bb1 {[%clk 0:01:13.1]} 32... f6 {[%clk 0:00:23.8]} 33. Rfd1 {[%clk 0:01:09]}
33... a5 {[%clk 0:00:20.8]} 34. Qe2 {[%clk 0:01:06.8]} 34... b4 {[%clk
0:00:20.6]} 35. Bd3 {[%clk 0:01:06.7]} 35... Bxd5 {[%clk 0:00:19.5]} 36. exd5
{[%clk 0:01:06.6]} 36... Ne5 {[%clk 0:00:19]} 37. Be4 {[%clk 0:00:52.6]} 37...
f5 {[%clk 0:00:18.9]} 38. Bb1 {[%clk 0:00:51.3]} 38... Qxd5 {[%clk 0:00:19.3]}
39. b3 {[%clk 0:00:49.8]} 39... Qd6 {[%clk 0:00:18.8]} 40. Qb5 {[%clk
0:00:46.3]} 40... g4 {[%clk 0:00:17.1]} 41. Qe2 {[%clk 0:00:38.3]} 41... gxf3
{[%clk 0:00:12.6]} 42. gxf3 {[%clk 0:00:38.3]} 42... Kf6 {[%clk 0:00:12.8]} 43.
Qc2 {[%clk 0:00:26.3]} 43... Qd7 {[%clk 0:00:11.1]} 44. Qe2 {[%clk 0:00:19.5]}
44... Rg8 {[%clk 0:00:10.7]} 45. Qa6+ {[%clk 0:00:14.4]} 45... Qe6 {[%clk
0:00:09.5]} 46. Qb7 {[%clk 0:00:12]} 46... Rg3 {[%clk 0:00:07.4]} 47. Rf1 {[%clk
0:00:08.2]} 47... Rxh3+ {[%clk 0:00:07.5]} 48. Kg2 {[%clk 0:00:08.8]} 48... Rg3+
{[%clk 0:00:08.4]} 49. Kh2 {[%clk 0:00:09.7]} 49... Qe7 {[%clk 0:00:05.2]} 50.
Qb6+ {[%clk 0:00:08.8]} 50... Kg5 {[%clk 0:00:05.4]} 51. Bxf5 {[%clk 0:00:02.6]}
51... Nxf3+ {[%clk 0:00:05.3]} 52. Rxf3 {[%clk 0:00:02.8]} 52... Qe2+ {[%clk
0:00:06]} 0-1

[Event "Early-Titled-Tuesday-Blitz-September-05-2023"]
[Site "Chess.com"]
[Date "2023.09.05"]
[Round "3"]
[White "EddieUrquhart"]
[Black "GrigorGrigorov"]
[Result "0-1"]
[WhiteElo "2380"]
[BlackElo "2870"]
[TimeControl "180+1"]
[EndTime "8:28:22 PDT"]
[Termination "GrigorGrigorov won by resignation"]

1. e4 {[%clk 0:02:18.2]} 1... c6 {[%clk 0:02:59.6]} 2. Bc4 {[%clk 0:02:16.9]}
2... d5 {[%clk 0:02:59.8]} 3. Bb3 {[%clk 0:02:17.3]} 3... g6 {[%clk 0:02:52.4]}
4. exd5 {[%clk 0:02:16]} 4... cxd5 {[%clk 0:02:52.2]} 5. d4 {[%clk 0:02:16.7]}
5... Bg7 {[%clk 0:02:52.3]} 6. Nf3 {[%clk 0:02:16.9]} 6... Nc6 {[%clk 0:02:52]}
7. c3 {[%clk 0:02:16.6]} 7... Bg4 {[%clk 0:02:51.3]} 8. O-O {[%clk 0:02:12.8]}
8... e6 {[%clk 0:02:50]} 9. Nbd2 {[%clk 0:02:12.9]} 9... Nge7 {[%clk 0:02:48.9]}
10. h3 {[%clk 0:02:12.9]} 10... Bxf3 {[%clk 0:02:48.5]} 11. Nxf3 {[%clk
0:02:13.8]} 11... O-O {[%clk 0:02:48.5]} 12. Bf4 {[%clk 0:02:14.2]} 12... Nf5
{[%clk 0:02:46.5]} 13. Re1 {[%clk 0:02:13.5]} 13... Nd6 {[%clk 0:02:46.5]} 14.
Ne5 {[%clk 0:02:10.7]} 14... Rc8 {[%clk 0:02:45.5]} 15. Nxc6 {[%clk 0:02:10.4]}
15... Rxc6 {[%clk 0:02:44.9]} 16. Bc2 {[%clk 0:02:02.9]} 16... Nc4 {[%clk
0:02:43.9]} 17. Rb1 {[%clk 0:01:59.5]} 17... b5 {[%clk 0:02:43]} 18. Bd3 {[%clk
0:01:58.6]} 18... Qb6 {[%clk 0:02:41.8]} 19. Qe2 {[%clk 0:01:54.8]} 19... b4
{[%clk 0:02:40.7]} 20. Bxc4 {[%clk 0:01:54.3]} 20... Rxc4 {[%clk 0:02:40.2]} 21.
Bd2 {[%clk 0:01:49.9]} 21... bxc3 {[%clk 0:02:34.5]} 22. bxc3 {[%clk 0:01:49.9]}
22... Qa5 {[%clk 0:02:25.5]} 23. Rb2 {[%clk 0:01:50]} 23... h5 {[%clk
0:01:53.9]} 24. Reb1 {[%clk 0:01:48.2]} 24... Qa6 {[%clk 0:01:52.1]} 25. Be1
{[%clk 0:01:25.7]} 25... Ra4 {[%clk 0:01:50.1]} 26. Qxa6 {[%clk 0:01:14.8]}
26... Rxa6 {[%clk 0:01:49.6]} 27. Kf1 {[%clk 0:01:14.5]} 27... Bh6 {[%clk
0:01:45.4]} 28. Ke2 {[%clk 0:01:13.8]} 28... Kg7 {[%clk 0:01:42.4]} 29. Bd2
{[%clk 0:01:14.1]} 29... Bxd2 {[%clk 0:01:41.3]} 30. Kxd2 {[%clk 0:01:15]} 30...
Rc8 {[%clk 0:01:41.2]} 31. Rc1 {[%clk 0:01:13]} 31... g5 {[%clk 0:01:38.8]} 32.
Kd3 {[%clk 0:01:12.7]} 32... Rc4 {[%clk 0:01:37.9]} 33. g3 {[%clk 0:01:11.6]}
33... Kf6 {[%clk 0:01:36.1]} 34. f3 {[%clk 0:01:11.6]} 34... Rca4 {[%clk
0:01:31.4]} 35. Rcc2 {[%clk 0:01:11.8]} 35... Kf5 {[%clk 0:01:21.9]} 36. Re2
{[%clk 0:01:10.8]} 36... h4 {[%clk 0:01:13.4]} 37. Re5+ {[%clk 0:01:05.1]} 37...
Kf6 {[%clk 0:01:10.8]} 38. gxh4 {[%clk 0:01:03.1]} 38... gxh4 {[%clk 0:01:11.7]}
39. Rh5 {[%clk 0:01:01.6]} 39... Rxa2 {[%clk 0:01:08.7]} 40. Rxa2 {[%clk
0:01:02.1]} 40... Rxa2 {[%clk 0:01:08.8]} 41. Rxh4 {[%clk 0:01:02.8]} 41... Rh2
{[%clk 0:01:04.8]} 42. Rh8 {[%clk 0:01:02.8]} 42... Kf5 {[%clk 0:00:58.9]} 43.
Ke3 {[%clk 0:01:02.7]} 43... a5 {[%clk 0:00:56.7]} 44. Ra8 {[%clk 0:01:01.1]}
44... Ra2 {[%clk 0:00:51.6]} 45. h4 {[%clk 0:01:00.9]} 45... a4 {[%clk
0:00:47.6]} 46. Ra7 {[%clk 0:00:58.7]} 46... f6 {[%clk 0:00:43.3]} 47. f4 {[%clk
0:00:54]} 47... Rh2 {[%clk 0:00:35.6]} 48. Rxa4 {[%clk 0:00:48.1]} 48... Rxh4
{[%clk 0:00:33.3]} 49. Ra6 {[%clk 0:00:47.9]} 49... Rh3+ {[%clk 0:00:30.1]} 50.
Kd2 {[%clk 0:00:48.2]} 50... Rf3 {[%clk 0:00:29.7]} 51. Ra8 {[%clk 0:00:45.1]}
51... Kxf4 {[%clk 0:00:25.9]} 52. Rh8 {[%clk 0:00:45.6]} 52... Ke4 {[%clk
0:00:24.4]} 53. Re8 {[%clk 0:00:43]} 53... e5 {[%clk 0:00:24.2]} 54. dxe5 {[%clk
0:00:42.5]} 54... fxe5 {[%clk 0:00:24.8]} 55. Rh8 {[%clk 0:00:40]} 55... Rf2+
{[%clk 0:00:24.4]} 56. Ke1 {[%clk 0:00:40.1]} 56... Rc2 {[%clk 0:00:23.1]} 57.
Rh4+ {[%clk 0:00:39.6]} 57... Kd3 {[%clk 0:00:21.6]} 58. Rh3+ {[%clk 0:00:39.7]}
58... Kc4 {[%clk 0:00:21.3]} 59. Rh5 {[%clk 0:00:32.2]} 59... e4 {[%clk
0:00:21]} 60. Kd1 {[%clk 0:00:30.6]} 60... Rxc3 {[%clk 0:00:21.1]} 61. Kd2
{[%clk 0:00:30.3]} 61... Rd3+ {[%clk 0:00:20]} 62. Ke2 {[%clk 0:00:30.7]} 62...
Kd4 {[%clk 0:00:20.2]} 63. Rh8 {[%clk 0:00:29.3]} 63... Ra3 {[%clk 0:00:19.8]}
64. Rb8 {[%clk 0:00:27.5]} 64... Ra2+ {[%clk 0:00:19.1]} 65. Ke1 {[%clk
0:00:27.9]} 65... e3 {[%clk 0:00:17.3]} 66. Rb4+ {[%clk 0:00:25.4]} 66... Kd3
{[%clk 0:00:17.4]} 67. Rb1 {[%clk 0:00:24.6]} 67... d4 {[%clk 0:00:16.9]} 68.
Rb3+ {[%clk 0:00:23.3]} 68... Ke4 {[%clk 0:00:17]} 69. Rb8 {[%clk 0:00:23]}
69... Ra1+ {[%clk 0:00:14.5]} 0-1